bitfinex-derivatives/quotes_SOLF0:USTF0_20250516
["timestamp","ask_amount","ask_price","bid_price","bid_amount"]
[1747373793644,59.46,173.23,173.12,5.4792]
[1747373793852,59.46,173.23,173.12,64.9392]
[1747373794047,5.772,173.21,173.16,5.7733]
[1747373794454,5.772,173.21,173.15,59.56]
[1747373794959,59.42,173.22,173.15,59.56]
[1747373796359,5.7726,173.2,173.15,65.3339]
[1747373796552,5.7726,173.2,173.15,59.56]
[1747373797464,5.772,173.21,173.16,5.7733]
[1747373797761,5.772,173.21,173.15,59.56]
[1747373798963,65.1917,173.22,173.15,59.56]
[1747373799364,65.1917,173.22,173.17,5.7732]
[1747373799852,65.1917,173.22,173.15,59.56]
[1747373800058,59.34,173.25,173.17,6.75253717]
[1747373800554,59.38,173.26,173.17,6.75253717]
[1747373801062,65.1503,173.26,173.21,5.7717]
[1747373801963,5.77,173.27,173.2,59.56]
[1747373802166,59.36,173.27,173.2,66.31253717]
[1747373802467,59.36,173.27,173.21,1.8953]
[1747373802666,65.3299,173.28,173.23,5.7711]
[1747373802966,124.7499,173.28,173.23,5.7711]
[1747373803369,1.8564,173.31,173.25,5.7706]
[1747373803569,59.42,173.3,173.25,5.7706]
[1747373803762,1.8564,173.31,173.25,5.7706]
[1747373803962,5.769,173.3,173.25,5.7706]
[1747373805773,5.769,173.3,173.26,5.7702]
[1747373806074,5.769,173.3,173.24,59.56]
[1747373806266,5.7693,173.29,173.24,65.3307]
[1747373806461,59.46,173.31,173.24,59.56]
[1747373806662,61.2824,173.31,173.21,65.1328]
[1747373806966,5.7699,173.28,173.21,65.1328]
[1747373807465,61.2824,173.31,173.22,5.7715]
[1747373807662,61.2824,173.31,173.21,63.2343]
[1747373808069,5.7699,173.28,173.24,5.7706]
[1747373808274,61.2824,173.31,173.21,63.2343]
[1747373808875,65.349,173.3,173.21,63.2343]
[1747373809378,65.349,173.3,173.25,5.7704]
[1747373809873,5.769,173.3,173.25,5.7704]
[1747373810073,65.389,173.3,173.25,5.7704]
[1747373810474,65.2286,173.32,173.21,63.2343]
[1747373810675,59.62,173.31,173.23,6.75253717]
[1747373811074,5.7696,173.29,173.24,5.7709]
[1747373811576,5.7692,173.3,173.25,5.7705]
[1747373811775,59.62,173.31,173.25,5.7705]
[1747373812376,5.7694,173.29,173.22,1.8015]
[1747373812687,5.7694,173.29,173.24,5.7709]
[1747373813081,5.7697,173.28,173.24,5.7709]
[1747373813278,5.7697,173.28,173.22,1.8015]
[1747373813279,59.62,173.31,173.25,5.7706]
[1747373813574,59.62,173.31,173.22,1.8015]
[1747373814380,59.62,173.31,173.23,5.7712]
[1747373814882,5.7702,173.27,173.23,5.7712]
[1747373816189,5.7697,173.28,173.24,5.7709]
[1747373818188,59.62,173.31,173.21,63.2343]
[1747373818391,59.62,173.31,173.21,1.8953]
[1747373818585,6.75253717,173.3,173.16,61.3877]
[1747373818785,6.75253717,173.3,173.18,5.7728]
[1747373819892,5.772,173.21,173.17,5.7732]
[1747373820286,59.44,173.21,173.13,59.44]
[1747373820686,5.773,173.18,173.14,5.774]
[1747373820990,59.62,173.19,173.13,59.44]
[1747373821192,59.62,173.19,173.13,65.2143]
[1747373821489,59.62,173.19,173.13,59.44]
[1747373821790,59.62,173.21,173.18,5.7726]
[1747373822794,59.62,173.21,173.16,5.7733]
[1747373823692,5.7723,173.2,173.15,5.7739]
[1747373823992,59.62,173.21,173.14,1.8438]
[1747373824493,5.7726,173.19,173.15,5.7736]
[1747373825097,5.7726,173.19,173.14,7.618]
[1747373825495,5.7724,173.2,173.14,1.8438]
[1747373825681,59.62,173.21,173.14,1.8438]
[1747373826093,65.3921,173.21,173.14,1.8438]
[1747373826296,59.62,173.21,173.14,1.8438]
[1747373826492,59.64,173.22,173.14,1.8438]
[1747373827194,59.64,173.22,173.18,5.7726]
[1747373827489,65.4117,173.22,173.14,1.8438]
[1747373827691,59.64,173.22,173.14,1.8438]
[1747373828293,5.7729,173.19,173.14,7.6178]
[1747373828894,5.773,173.18,173.14,7.6178]
[1747373829096,59.64,173.2,173.12,59.46]
[1747373829393,59.46,173.24,173.13,8.19610069]
[1747373829597,61.4264,173.27,173.19,5.7723]
[1747373829788,59.98,173.26,173.17,59.46]
[1747373829989,5.7715,173.23,173.17,59.46]
[1747373830189,5.7715,173.23,173.18,5.7727]
[1747373831002,59.46,173.32,173.19,66.95253717]
[1747373831296,61.1,173.31,173.22,6.75253717]
[1747373831593,61.1,173.31,173.23,59.46]
[1747373831989,5.7707,173.25,173.23,59.46]
[1747373832196,5.7707,173.25,173.2,7.6992]
[1747373832392,61.16,173.27,173.2,9.1421498]
[1747373832597,61.16,173.27,173.2,1.927]
[1747373833199,5.7703,173.26,173.2,7.699]
[1747373833792,61.16,173.27,173.19,61.3563]
[1747373834100,61.16,173.27,173.15,131.41645992]
[1747373834301,61.16,173.27,173.16,1.44317487]
[1747373834598,61.16,173.27,173.17,1.44317487]
[1747373834798,61.16,173.27,173.16,1.44317487]
[1747373835795,10.79645992,173.26,173.12,59.46]
[1747373835995,59.46,173.25,173.13,1.44344047]
[1747373836188,59.46,173.25,173.14,1.44344047]
[1747373836389,59.46,173.25,173.15,1.44344047]
[1747373836593,59.46,173.25,173.16,1.44344047]
[1747373836792,59.46,173.25,173.13,1.44344047]
[1747373837095,59.46,173.25,173.14,1.44344047]
[1747373837396,59.46,173.25,173.15,1.44344047]
[1747373837598,59.46,173.25,173.16,1.44344047]
[1747373837798,59.46,173.25,173.13,1.44344047]
[1747373837998,61.42,173.24,173.14,62.86334887]
[1747373838202,61.42,173.24,173.15,3.27154887]
[1747373838405,61.42,173.24,173.16,62.88334887]
[1747373838610,61.42,173.24,173.17,1.44334887]
[1747373838802,61.42,173.24,173.18,1.44334887]
[1747373839102,61.42,173.24,173.2,5.772]
[1747373839804,67.191,173.24,173.19,7.21576708]
[1747373840104,67.191,173.24,173.19,5.7726]
[1747373840302,5.7715,173.23,173.18,1.44316708]
[1747373840504,61.42,173.24,173.18,1.44316708]
[1747373840700,61.42,173.24,173.17,1.44316708]
[1747373840904,61.42,173.24,173.16,61.44]
[1747373841101,61.42,173.24,173.17,1.4432469]
[1747373841303,61.42,173.24,173.18,1.4432469]
[1747373841506,5.7706,173.26,173.19,1.4432469]
[1747373841699,61.36,173.25,173.16,61.44]
[1747373841900,61.36,173.25,173.17,1.44311816]
[1747373842100,61.36,173.25,173.18,1.44311816]
[1747373842299,61.36,173.25,173.19,1.44311816]
[1747373842501,5.7713,173.23,173.18,5.7726]
[1747373842702,5.7713,173.23,173.18,7.21571816]
[1747373843007,5.7713,173.23,173.18,5.7726]
[1747373843207,5.7713,173.23,173.19,5.7726]
[1747373843513,61.36,173.25,173.17,1.44320236]
[1747373843805,5.7719,173.22,173.18,1.44320236]
[1747373844002,61.36,173.25,173.16,61.44]
[1747373844199,61.36,173.25,173.17,1.4432893]
[1747373844402,61.36,173.25,173.08,3.819]
[1747373844602,61.36,173.25,173.09,62.8835193]
[1747373844802,61.36,173.25,173.1,1.4435193]
[1747373845003,61.36,173.25,173.11,1.4435193]
[1747373845203,61.36,173.25,173.12,1.4435193]
[1747373845404,61.36,173.25,173.13,1.44351321]
[1747373845608,5.7729,173.19,173.14,7.21771321]
[1747373845907,61.66,173.18,173.14,5.7742]
[1747373846407,61.66,173.18,173.15,5.7739]
[1747373846804,67.433,173.18,173.14,5.7742]
[1747373848304,61.66,173.18,173.15,5.7739]
[1747373849003,61.66,173.18,173.13,1.44357124]
[1747373849206,61.66,173.18,173.09,61.44]
[1747373849409,61.66,173.18,173.1,1.44355458]
[1747373849604,5.7733,173.17,173.13,5.7744]
[1747373849805,61.66,173.18,173.09,61.44]
[1747373850005,61.44,173.17,173.09,61.44]
[1747373850508,61.44,173.17,173.09,67.2158]
[1747373851009,61.44,173.17,173.05,61.46]
[1747373851209,5.7754,173.11,173.07,5.7766]
[1747373851409,61.74,173.11,173.07,5.7766]
[1747373851908,61.74,173.11,173.08,5.7762]
[1747373852506,61.74,173.11,173.06,5.7767]
[1747373852903,61.74,173.11,173.03,1.8797]
[1747373853104,61.74,173.11,173.01,61.46]
[1747373853510,5.7773,173.05,172.98,61.68]
[1747373853813,67.4773,173.05,172.98,61.68]
[1747373854008,67.4773,173.05,172.97,67.0565]
[1747373854209,67.4773,173.05,173.0,5.7789]
[1747373856307,61.7,173.05,172.97,67.0565]
[1747373856912,61.7,173.05,173.01,5.7785]
[1747373857115,67.4773,173.05,173.01,5.7785]
[1747373857513,61.7,173.05,173.01,5.7785]
[1747373857706,61.7,173.05,172.97,67.0565]
[1747373857907,61.46,173.06,172.97,67.0565]
[1747373858107,122.98,173.06,172.97,67.0565]
[1747373858512,122.98,173.06,172.98,61.52]
[1747373859912,128.757,173.06,172.98,61.52]
[1747373860409,122.98,173.06,173.04,5.7776]
[1747373860615,61.46,173.06,172.98,61.52]
[1747373861005,61.46,173.06,173.04,5.7775]
[1747373861508,61.46,173.06,172.98,61.52]
[1747373861716,61.46,173.06,173.05,5.7773]
[1747373861905,61.46,173.06,172.98,61.52]
[1747373862104,61.46,173.06,173.02,5.778]
[1747373862613,61.46,173.06,172.98,61.52]
[1747373863716,67.237,173.06,172.98,61.52]
[1747373863917,61.46,173.06,173.0,5.7789]
[1747373864415,5.778,173.03,172.97,67.0565]
[1747373864619,5.778,173.03,172.99,5.7792]
[1747373866317,5.7783,173.02,172.98,5.7795]
[1747373866517,61.48,173.04,172.98,5.7795]
[1747373866718,61.48,173.04,172.97,65.2102]
[1747373866917,67.2579,173.04,172.99,5.779]
[1747373867309,67.2579,173.04,172.97,65.2102]
[1747373867719,67.2579,173.04,172.99,5.7793]
[1747373867921,67.2579,173.04,172.97,65.2102]
[1747373868919,67.2579,173.04,172.99,5.7793]
[1747373870422,67.2579,173.04,173.0,5.7788]
[1747373871616,5.778,173.03,173.0,5.7788]
[1747373871822,5.778,173.03,172.97,61.46]
[1747373872019,5.778,173.03,172.94,6.76553901]
[1747373872922,67.2577,173.04,172.94,6.76553901]
[1747373874324,67.2577,173.04,173.0,5.7789]
[1747373875425,5.778,173.03,172.99,5.7792]
[1747373876124,5.778,173.03,173.0,5.7789]
[1747373876725,61.48,173.04,173.01,5.7786]
[1747373876921,61.48,173.04,172.94,6.76553901]
[1747373878524,5.7783,173.03,172.98,5.7794]
[1747373878716,5.7783,173.03,172.94,6.76553901]
[1747373879121,5.7783,173.02,172.94,6.76553901]
[1747373879725,5.7783,173.02,172.98,5.7794]
[1747373880026,5.778,173.03,172.94,6.76553901]
[1747373880327,61.48,173.04,172.94,6.76553901]
[1747373880625,67.2579,173.04,172.94,6.76553901]
[1747373880923,61.48,173.04,172.99,5.7791]
[1747373881126,5.778,173.03,172.94,6.76553901]
[1747373881325,61.48,173.04,172.94,6.76553901]
[1747373881927,5.7782,173.03,172.94,6.76553901]
[1747373882127,61.48,173.04,172.98,5.7793]
[1747373882626,5.7786,173.01,172.98,5.7793]
[1747373883016,5.7793,172.99,172.93,61.36]
[1747373883525,66.659,173.0,172.95,5.7806]
[1747373883926,66.659,173.0,172.93,61.36]
[1747373884125,66.659,173.0,172.95,5.7806]
[1747373884926,5.7793,172.99,172.95,5.7806]
[1747373885424,5.7796,172.98,172.93,67.141]
[1747373885622,60.88,173.0,172.93,5.781]
[1747373885829,61.38,172.98,172.93,5.781]
[1747373886130,61.38,172.98,172.86,3.7184]
[1747373886315,1.9022,172.97,172.86,3.7184]
[1747373886515,60.8,172.96,172.86,3.7184]
[1747373887126,5.7813,172.93,172.88,5.7827]
[1747373887626,5.7813,172.93,172.89,5.7826]
[1747373888330,5.7817,172.92,172.88,5.7829]
[1747373889431,5.7813,172.93,172.89,5.7825]
[1747373891729,61.38,172.94,172.86,1.8176]
[1747373891730,60.6,172.92,172.86,1.8176]
[1747373891929,60.6,172.92,172.85,63.2727]
[1747373892631,1.9022,172.97,172.86,6.76553901]
[1747373892828,5.7807,172.95,172.86,6.76553901]
[1747373893036,61.4,172.96,172.86,6.76553901]
[1747373893227,121.98,172.96,172.89,6.76553901]
[1747373893430,121.98,172.96,172.9,1.8862]
[1747373893627,121.98,172.96,172.87,60.58]
[1747373894028,5.7809,172.95,172.9,5.782]
[1747373894431,5.7809,172.95,172.87,60.58]
[1747373895234,121.98,172.96,172.87,60.58]
[1747373895430,61.4,172.96,172.89,6.76553901]
[1747373895631,61.4,172.96,172.9,1.8323]
[1747373896034,61.4,172.96,172.91,1.8242]
[1747373896426,61.4,172.96,172.93,5.781]
[1747373896630,61.4,172.96,172.91,1.8242]
[1747373897539,67.1803,172.96,172.92,5.7813]
[1747373899445,5.7807,172.95,172.91,7.6061]
[1747373899841,5.7807,172.95,172.91,5.7819]
[1747373901144,5.781,172.94,172.91,5.7819]
[1747373902153,5.7807,172.95,172.91,5.7819]
[1747373902649,61.4,172.96,172.92,5.7815]
[1747373903250,61.4,172.96,172.87,1.8732]
[1747373903852,5.7806,172.95,172.87,1.8732]
[1747373904351,5.781,172.94,172.91,5.7818]
[1747373905649,5.7807,172.95,172.92,5.7815]
[1747373905848,61.4,172.96,172.87,1.8732]
[1747373907351,61.4,172.96,172.78,62.0]
[1747373907558,5.7825,172.9,172.84,5.784]
[1747373907750,66.1625,172.9,172.84,5.784]
[1747373907952,60.38,172.9,172.84,5.784]
[1747373908560,5.7827,172.89,172.83,5.7845]
[1747373908857,60.38,172.9,172.83,5.7845]
[1747373909557,5.7831,172.88,172.83,5.7845]
[1747373909950,60.38,172.9,172.83,5.7845]
[1747373910247,5.7832,172.88,172.83,5.7845]
[1747373910447,5.7832,172.88,172.84,5.7842]
[1747373910960,5.7833,172.87,172.83,5.7845]
[1747373911865,5.7837,172.86,172.82,5.7849]
[1747373912060,60.38,172.9,172.8,67.38553901]
[1747373912256,60.38,172.9,172.81,5.7852]
[1747373912759,5.7839,172.86,172.81,5.7852]
[1747373913256,5.7843,172.84,172.81,5.7852]
[1747373913957,5.7843,172.84,172.8,66.4056]
[1747373914261,5.7843,172.84,172.8,60.62]
[1747373914448,5.7843,172.84,172.8,66.4055]
[1747373914656,60.24,172.86,172.79,5.8024]
[1747373915262,5.7848,172.83,172.79,11.5883]
[1747373915461,5.7848,172.83,172.79,5.8024]
[1747373915650,5.785,172.82,172.77,5.7866]
[1747373915850,5.785,172.82,172.76,1.9028]
[1747373916456,5.7847,172.83,172.78,5.786]
[1747373916663,60.24,172.86,172.76,1.9028]
[1747373916863,60.24,172.86,172.78,6.76553901]
[1747373917162,5.784,172.85,172.81,5.785]
[1747373917558,60.24,172.86,172.81,5.785]
[1747373917761,66.0237,172.86,172.81,5.785]
[1747373918364,5.7841,172.85,172.81,5.785]
[1747373918862,5.7843,172.84,172.8,5.7856]
[1747373919158,60.24,172.86,172.78,67.40553901]
[1747373919350,60.24,172.86,172.78,60.64]
[1747373919759,60.24,172.86,172.76,1.9028]
[1747373920368,5.7851,172.82,172.78,5.7862]
[1747373920565,60.24,172.86,172.76,1.9028]
[1747373921167,5.7849,172.83,172.78,5.7861]
[1747373921369,60.24,172.86,172.76,1.9028]
[1747373921670,5.7844,172.84,172.79,5.7857]
[1747373922169,5.7847,172.83,172.79,5.7857]
[1747373922874,5.7844,172.84,172.8,5.7856]
[1747373923365,5.7847,172.83,172.79,5.7859]
[1747373923572,60.24,172.86,172.76,1.9028]
[1747373924570,60.24,172.86,172.78,5.7862]
[1747373924773,60.24,172.86,172.76,1.9028]
[1747373925166,5.7849,172.83,172.79,5.7859]
[1747373925467,60.24,172.86,172.76,1.9028]
[1747373925769,5.785,172.82,172.78,5.7862]
[1747373925965,60.24,172.86,172.76,1.9028]
[1747373928166,6.76553901,172.85,172.74,5.7876]
[1747373928672,5.7866,172.77,172.74,5.7876]
[1747373929174,5.7864,172.78,172.74,5.7876]
[1747373930980,5.7861,172.79,172.75,5.7873]
[1747373931274,120.14,172.81,172.74,6.76553901]
[1747373931475,60.08,172.81,172.75,1.8526]
[1747373931677,5.7856,172.8,172.75,7.6398]
[1747373931874,60.08,172.81,172.75,7.6398]
[1747373932280,5.7857,172.8,172.75,7.6398]
[1747373932576,5.7857,172.8,172.76,5.787]
[1747373932981,65.8654,172.81,172.77,5.7866]
[1747373933383,60.08,172.81,172.75,1.8526]
[1747373934176,5.786,172.79,172.75,7.6397]
[1747373934383,60.08,172.81,172.75,1.8526]
[1747373934582,60.06,172.84,172.75,61.8926]
[1747373935584,5.7854,172.81,172.77,5.7864]
[1747373936477,5.7857,172.8,172.77,5.7864]
[1747373936682,5.7857,172.8,172.76,5.7869]
[1747373936978,65.8054,172.81,172.75,1.8526]
[1747373937185,120.06,172.84,172.79,5.786]
[1747373937477,120.06,172.84,172.76,120.08]
[1747373937781,5.7846,172.83,172.79,5.7858]
[1747373938382,5.7846,172.83,172.76,120.08]
[1747373938383,5.785,172.82,172.78,5.7862]
[1747373938575,120.06,172.84,172.76,120.08]
[1747373938980,5.7847,172.83,172.79,5.7857]
[1747373939484,5.7847,172.83,172.8,5.7856]
[1747373939687,61.9134,172.87,172.77,6.76553901]
[1747373939983,60.2,172.86,172.77,6.76553901]
[1747373940185,60.2,172.86,172.82,5.7847]
[1747373940386,61.9134,172.87,172.82,5.7847]
[1747373940582,5.7837,172.86,172.82,5.7847]
[1747373940991,122.1334,172.87,172.83,5.7846]
[1747373941187,122.1134,172.87,172.77,6.76553901]
[1747373942087,122.1134,172.87,172.76,126.84553901]
[1747373942393,5.7842,172.85,172.76,126.84553901]
[1747373943592,5.7842,172.85,172.81,5.7852]
[1747373946789,5.7846,172.83,172.76,126.84553901]
[1747373946999,60.1,172.83,172.76,60.06]
[1747373947293,120.16,172.83,172.76,60.06]
[1747373947894,5.7853,172.81,172.77,5.7865]
[1747373948091,5.7853,172.81,172.76,60.06]
[1747373948292,5.7851,172.82,172.78,5.7863]
[1747373950688,5.7851,172.82,172.79,5.7859]
[1747373950889,125.9447,172.83,172.79,5.7859]
[1747373951194,120.16,172.83,172.75,1.8526]
[1747373951489,61.9134,172.87,172.76,6.76553901]
[1747373951693,60.08,172.86,172.77,120.16]
[1747373951893,5.7841,172.85,172.81,5.7852]
[1747373953594,65.8637,172.86,172.82,5.7849]
[1747373953796,60.08,172.86,172.82,5.7849]
[1747373954695,5.784,172.85,172.82,5.7849]
[1747373956894,65.8637,172.86,172.82,5.7849]
[1747373957901,5.784,172.85,172.82,5.7849]
[1747373958195,60.08,172.86,172.82,5.7849]
[1747373958695,5.7837,172.86,172.82,5.7849]
[1747373959396,5.784,172.85,172.81,5.7853]
[1747373961091,5.7837,172.86,172.81,5.7853]
[1747373961395,5.7837,172.86,172.82,5.7849]
[1747373961698,121.7734,172.87,172.82,5.7849]
[1747373961889,127.5569,172.87,172.82,5.7849]
[1747373962499,5.7837,172.86,172.82,5.7849]
[1747373963397,127.5567,172.87,172.82,5.7849]
[1747373968202,5.7837,172.86,172.81,5.7852]
[1747373969203,5.7837,172.86,172.82,5.7849]
[1747373969703,121.7734,172.87,172.75,1.8526]
[1747373969903,121.7734,172.87,172.75,121.3526]
[1747373970199,5.7841,172.85,172.79,5.7857]
[1747373970406,121.7734,172.87,172.79,5.7857]
[1747373970903,121.7734,172.87,172.77,5.7863]
[1747373971105,121.7734,172.87,172.75,121.3526]
[1747373971403,121.7734,172.87,172.78,5.7862]
[1747373971806,121.7734,172.87,172.75,121.3526]
[1747373971999,5.7849,172.83,172.79,5.7859]
[1747373972199,65.3849,172.83,172.79,5.7859]
[1747373973115,5.785,172.82,172.79,5.7859]
[1747373973307,5.785,172.82,172.78,5.7862]
[1747373974411,5.7857,172.8,172.75,7.6396]
[1747373974908,5.7861,172.79,172.75,5.787]
[1747373976416,119.48,172.83,172.73,61.727]
[1747373977111,5.7851,172.82,172.77,5.7864]
[1747373977418,5.7851,172.82,172.74,1.9915]
[1747373978215,5.7851,172.82,172.78,5.7861]
[1747373978417,125.2648,172.83,172.74,3.937]
[1747373978817,125.2648,172.83,172.74,63.497]
[1747373981324,5.7841,172.85,172.81,5.7853]
[1747373981516,59.6,172.84,172.74,63.497]
[1747373982317,65.3843,172.84,172.8,5.7854]
[1747373987120,59.6,172.84,172.81,5.7853]
[1747373987717,119.42,172.85,172.76,59.88]
[1747373988217,125.2042,172.85,172.81,5.7851]
[1747373989525,5.7843,172.84,172.8,5.7856]
[1747374001931,5.7847,172.83,172.8,5.7856]
[1747374002430,5.7847,172.83,172.79,5.786]
[1747374002930,119.42,172.85,172.78,5.7863]
[1747374003131,119.42,172.85,172.74,1.9915]
[1747374003931,5.7858,172.8,172.76,5.7868]
[1747374004132,119.04,172.81,172.74,1.9915]
[1747374004531,119.04,172.81,172.78,5.7862]
[1747374006235,119.04,172.81,172.79,5.7859]
[1747374006438,119.04,172.81,172.74,1.9915]
[1747374006635,119.04,172.84,172.75,1.8171]
[1747374007533,124.8244,172.84,172.75,1.8171]
[1747374008927,124.8244,172.84,172.8,5.7856]
[1747374012440,5.7847,172.83,172.79,5.7859]
[1747374013740,124.8244,172.84,172.79,5.7859]
[1747374013943,124.8244,172.84,172.8,5.7856]
[1747374017347,5.7847,172.83,172.79,5.7859]
[1747374021851,5.7844,172.84,172.8,5.7857]
[1747374022053,59.5,172.85,172.77,4.33947956]
[1747374022252,5.7849,172.83,172.79,5.7859]
[1747374022454,4.33947956,172.84,172.76,119.02]
[1747374022756,5.7859,172.8,172.76,5.787]
[1747374023055,59.5,172.81,172.75,4.33947956]
[1747374024455,5.7857,172.8,172.76,5.787]
[1747374026555,5.7857,172.8,172.77,5.7866]
[1747374026861,59.5,172.81,172.74,1.9915]
[1747374028256,59.5,172.81,172.78,5.7861]
[1747374032861,59.5,172.81,172.79,5.786]
[1747374033661,59.5,172.81,172.78,5.7863]
[1747374033962,65.2853,172.81,172.77,5.7866]
[1747374034161,59.5,172.81,172.77,5.7866]
[1747374035163,59.5,172.81,172.78,5.7862]
[1747374035963,59.5,172.81,172.79,5.786]
[1747374038975,59.5,172.81,172.78,5.7862]
[1747374039471,5.7861,172.79,172.75,5.7872]
[1747374039678,59.5,172.81,172.75,5.7872]
[1747374040276,5.7864,172.78,172.75,5.7872]
[1747374040478,59.5,172.81,172.76,5.7869]
[1747374040673,59.5,172.81,172.74,1.9915]
[1747374040874,5.7861,172.79,172.74,1.9915]
[1747374041175,5.7861,172.79,172.75,5.7871]
[1747374045081,5.7861,172.79,172.76,5.787]
[1747374046081,59.5,172.81,172.77,5.7867]
[1747374046282,59.48,172.81,172.77,5.7867]
[1747374046482,5.7857,172.8,172.76,5.7869]
[1747374047984,5.7861,172.79,172.76,5.7869]
[1747374048188,5.7861,172.79,172.75,10.12841349]
[1747374048377,59.48,172.81,172.75,10.12841349]
[1747374048886,5.7863,172.79,172.75,10.12841349]
[1747374049786,5.7863,172.79,172.75,5.7872]
[1747374050489,5.7857,172.8,172.76,5.787]
[1747374052086,5.786,172.79,172.76,5.787]
[1747374053185,59.48,172.81,172.74,5.7875]
[1747374053482,4.34121349,172.78,172.71,4.34121349]
[1747374053691,63.80121349,172.78,172.7,61.439]
[1747374053889,5.7871,172.76,172.72,5.7881]
[1747374062794,5.7871,172.76,172.73,5.788]
[1747374064994,59.46,172.77,172.73,4.34121349]
[1747374065593,59.46,172.77,172.74,5.7876]
[1747374066092,124.6866,172.78,172.74,5.7876]
[1747374066292,5.7868,172.77,172.74,5.7876]
[1747374067294,124.6864,172.78,172.74,5.7876]
[1747374067494,124.6864,172.78,172.75,5.7873]
[1747374067794,118.9,172.78,172.75,5.7873]
[1747374068493,5.7868,172.77,172.74,5.7876]
[1747374070499,310.80275366,172.81,172.75,4.34121349]
[1747374071303,316.58835366,172.81,172.77,5.7866]
[1747374072597,251.36275366,172.81,172.75,4.34121349]
[1747374073701,251.36275366,172.81,172.79,5.786]
[1747374075203,191.90275366,172.81,172.79,5.786]
[1747374075707,191.90275366,172.81,172.8,5.7857]
[1747374076507,191.90275366,172.81,172.79,5.786]
[1747374078403,191.90275366,172.81,172.8,5.7857]
[1747374079813,185.89375366,172.81,172.8,5.7857]
[1747374081411,5.7839,172.86,172.81,5.7852]
[1747374082210,5.7841,172.85,172.81,5.7852]
[1747374082412,59.4,172.87,172.81,5.7852]
[1747374082606,59.4,172.86,172.81,5.7852]
[1747374083315,65.1839,172.86,172.81,5.7852]
[1747374085215,5.784,172.85,172.81,5.7852]
[1747374085412,63.74121349,172.86,172.8,5.7856]
[1747374086613,5.7846,172.84,172.8,5.7856]
[1747374088516,5.7841,172.85,172.8,5.7856]
[1747374088815,5.7841,172.85,172.81,5.7853]
[1747374091920,5.7844,172.84,172.8,5.7856]
[1747374093414,5.7844,172.84,172.81,5.7853]
[1747374093615,5.784,172.85,172.81,5.7853]
[1747374094716,63.74121349,172.86,172.81,5.7853]
[1747374095019,5.7843,172.84,172.81,5.7853]
[1747374095824,5.784,172.85,172.81,5.7853]
[1747374098317,65.124,172.85,172.81,5.7853]
[1747374101427,65.124,172.85,172.82,5.785]
[1747374102421,65.124,172.85,172.81,5.7852]
[1747374103529,5.7845,172.84,172.8,5.7856]
[1747374109936,5.7845,172.84,172.81,5.7853]
[1747374112034,5.7845,172.84,172.8,5.7856]
[1747374113034,5.7845,172.84,172.81,5.7853]
[1747374113835,5.7845,172.84,172.8,5.7856]
[1747374114036,63.68121349,172.85,172.77,4.34121349]
[1747374114238,59.32,172.84,172.77,4.34121349]
[1747374114434,59.32,172.84,172.78,5.7861]